Workbook

Sheet Racks
A1: UNDP-MoH Health System Strengthening
A2: Beira Warehouse - Mozambique
A4: Racking System and Binning Equipment
C6: 2020 | G6: 2022
A7: Item No. | B7: Description of Items | C7: Quantity | D7: UoM | E7: Unit Price in USD | F7: TOTAL Price in USD | G7: Quantity | H7: UoM | I7: Add 20% | J7: Unit Price in USD + Add 20% | K7: TOTAL estimated Price in USD
A8: 1 | B8: Storage Structure and Binning Equipment
A9: 1.1 | B9: Main Warehouse | M9: =SUM(K10:K13) -> 183551.988
B10: Adjustable Pallet Racking delivered and installed (pallets) | C10: 4989 | D10: pallets | E10: 27.04 | F10: 134902.56 | G10: 5061 | H10: pallets | I10: 1.2 | J10: =E10*I10 -> 32.448 | K10: =J10*G10 -> 164219.328
B11: Plastic Upright Protectors | C11: 324 | D11: uprights | E11: 32.93 | F11: 10669.32 | G11: 338 | H11: uprights | I11: 1.2 | J11: =E11*I11 -> 39.516 | K11: =J11*G11 -> 13356.408
B12: Row End Barriers | C12: 33 | D12: units | E12: 125.31 | F12: 4135.23 | G12: 37 | H12: units | I12: 1.2 | J12: 150.372 | K12: 5563.764
B13: Row Signage | C13: 32 | D13: units | E13: 10.11 | F13: 323.52 | G13: 34 | H13: units | I13: 1.2 | J13: 12.132 | K13: 412.488
A14: 1.2 | B14: Picking System Main Warehouse | M14: =SUM(K15:K17) -> 55524.132
B15: Long span shelving | C15: 147 | D15: bays | E15: 267.44 | F15: 39313.68 | G15: 163 | H15: bays | I15: 1.2 | J15: =E15*I15 -> 320.928 | K15: =J15*G15 -> 52311.264
B16: Row Signage | C16: 22 | D16: units | E16: 10.11 | F16: 222.42 | G16: 24 | H16: units | I16: 1.2 | J16: 12.132 | K16: 291.168
B17: Pick Trolleys | C17: 3 | D17: ea | E17: 486.95 | F17: 1460.85 | G17: 5 | H17: ea | I17: 1.2 | J17: 584.34 | K17: 2921.7
A18: 1.3 | B18: Surgical Materials Store
B19: Steel Binning Iron shelving? | C19: 41 | D19: units | E19: 92.21 | F19: 3780.61 | G19: 41 | H19: units | I19: 1.2 | J19: =E19*I19 -> 110.652 | K19: =J19*G19 -> 4536.732 | M19: =K19 -> 4536.732
A20: 1.4 | B20: Psychotropic Store
B21: Steel Binning Iron lockable storage cabinets | C21: 31 | D21: units | E21: 92.21 | F21: 2858.51 | G21: 31 | H21: units | I21: 1.2 | J21: =E21*I21 -> 110.652 | K21: 3430.212 | M21: =K21 -> 3430.212
A22: 1.5 | B22: Warehouse flammable products | M22: =SUM(K23:K26) -> 3515.232
B23: Adjustable Pallet Racking delivered and installed (pallets) | E23: 27.04 | G23: 72 | H23: pallets | I23: 1.2 | J23: =E23*I23 -> 32.448 | K23: =J23*G23 -> 2336.256
B24: Plastic Upright Protectors | E24: 32.93 | G24: 14 | H24: uprights | I24: 1.2 | J24: =E24*I24 -> 39.516 | K24: =J24*G24 -> 553.224
B25: Row End Barriers | E25: 125.31 | G25: 4 | H25: units | I25: 1.2 | J25: 150.372 | K25: =J25*G25 -> 601.488
B26: Row Signage | E26: 10.11 | G26: 2 | H26: units | I26: 1.2 | J26: 12.132 | K26: =J26*G26 -> 24.264
A27: 1.6 | B27: Toxic Products Warehouse | M27: =SUM(K28:K30) -> 6327.792
B28: Long span shelving | E28: 267.44 | G28: 16 | H28: bays | I28: 1.2 | J28: =E28*I28 -> 320.928 | K28: =J28*G28 -> 5134.848
B29: Row Signage | E29: 10.11 | G29: 2 | H29: units | I29: 1.2 | J29: 12.132 | K29: 24.264
B30: Pick Trolleys | E30: 486.95 | G30: 2 | H30: ea | I30: 1.2 | J30: 584.34 | K30: 1168.68
A32: Total Price in USD for required Equipment
A33: 2 | B33: Transporation Price to DAP - Mozambique Beira/Mpauto? as indicated in the RFQ ( please indicate tranporstation shall be from which city/location) | C33: 1 | D33: LS | E33: 32758.13 | F33: 32758.13 | G33: 1 | H33: LS | I33: 5 | J33: =F33*I33 -> 163790.65 | K33: =J33 -> 163790.65
A34: 3 | B34: Installation and commissiong?? Price | C34: 1 | D34: LS | E34: 30391.12 | F34: 30391.12 | G34: 1 | H34: LS | I34: 1.2 | J34: =F34*I34 -> 36469.344 | K34: =J34*G34 -> 36469.344
A35: Grand Total Price for (Items 1,2 and3) | F35: =SUM(F10:F34) -> 260815.95 | K35: =SUM(K10:K34) -> 457146.082
A37: Notes:
B38: All Storage and handling equipment must consider the standard Europallets dimensions 0.80x1.20m
B39: Long span shelving means layers of
